Cogmind - Beta 17 @@@ ROGUE MODE // 2026.07.09 @ 21:28:13 Player: DeluxeH30 Result: Destroyed by G-34 Mercenary with Small Laser Performance ------------- Evolutions (0) 0 Regions Visited (1) 200 Robots Destroyed (9) 45 Value Destroyed (276) 276 Prototype IDs (0) 0 Alien Tech Used (0) 0 Bonus (0) 0 TOTAL SCORE: 521 Bonus ------- None Cogmind --------- Core Integrity 0/250 Matter 300/300 Energy 120/250 System Corruption 5% Temperature Warm (195) Movement Walking (190) Ox1 Location -10/Materials Parts ------- > --- POWER (1) -------- Ion Engine > --- PROPULSION (2) --- Aluminum Leg > --- UTILITY (2) ------ Small Storage Unit Signal Interpreter > --- WEAPON (2) ------- Small Laser Small Laser > --- INVENTORY (8) ---- Light Ion Engine Aluminum Leg Aluminum Leg Heat Sink Small Laser Peak State ------------ > --- POWER ------------ Light Ion Engine > --- PROPULSION ------- Aluminum Leg Aluminum Leg > --- UTILITY ---------- Small Storage Unit Signal Interpreter > --- WEAPON ----------- Light Assault Rifle Light Assault Rifle > --- INVENTORY -------- Light Ion Engine Compact Wheel Compact Wheel EM Pulse Gun [Rating: 7] Favorites ----------- Power Light Ion Engine Engine Light Ion Engine Propulsion Aluminum Leg Leg Aluminum Leg Wheel Compact Wheel Utility Small Storage Unit Storage Small Storage Unit Processor Signal Interpreter Weapon Light Assault Rifle Energy Gun Small Laser Ballistic Gun Light Assault Rifle Build | -11 -10 ------- Run | Yrd Mat Slots Evolved . | . . Power . | . . Propulsion . | . . Utility . | . . Weapon . | . . Parts Attached 16 | 2 14 Power 3 | 1 2 Engine 3 | 1 2 Core . | . . Reactor . | . . Propulsion 6 | . 6 Treads . | . . Leg 4 | . 4 Wheel 2 | . 2 Hover . | . . Flight . | . . Utility 2 | 1 1 Device . | . . Storage 1 | 1 . Processor 1 | . 1 Hackware . | . . Protection . | . . Artifact . | . . Weapon 5 | . 5 Energy Gun 3 | . 3 Energy Cannon . | . . Ballistic Gun 2 | . 2 Ballistic Cannon . | . . Launcher . | . . Special Weapon . | . . Impact Weapon . | . . Slashing Weapon . | . . Piercing Weapon . | . . Special Melee Weapon . | . . Unidentified Prototypes . | . . Corrupted Parts 3 | . 3 System Corruption 5 | . 5 Parts Lost 8 | . 8 Power 2 | . 2 Propulsion 3 | . 3 Utility . | . . Weapon 3 | . 3 Highest Loss Streak 7 | . 7 To Critical Strikes . | . . Average Backups 3 | 4 3 Power . | . . Propulsion 1 | 2 1 Utility . | . . Weapon 1 | 1 . Tool/Special . | . . Unused Backups 3 | . 3 Power . | . . Propulsion . | . . Utility 1 | . 1 Weapon 2 | . 2 Tool/Special . | . . Average Slot Usage (%) 86 | . 86 Engine 11 | . 11 Leg 19 | . 19 Wheel 4 | . 4 Storage 14 | . 14 Processor 13 | . 13 Energy Gun 8 | . 8 Ballistic Gun 14 | . 14 Peak Build Rating 7 | 2 7 Average Rating 4 | 1 6 On Entrance 1 | . 2 Avg Prop Armor Cover (%) . | . . Naked Turns . | . . Heaviest Build 12 | 8 12 Greatest Support 32 | 3 32 Greatest Overweight (x) 2 | 2 1 Average Overweight (x) . | 1 . Largest Inventory Capacity 8 | 8 8 Average Capacity 7 | 7 8 Most Carried 8 | 8 7 Average Carried 3 | 4 3 Final Capacity 8 | 8 8 Final Carried 8 | 8 5 Class Distribution -------------------- 88% | Mutant 11% | Scavenger-Mutant Dominant Class ---------------- Mutant | -10/Materials Resources | -11 -10 ----------- Run | Yrd Mat Matter Collected 381 | 185 196 Remotely . | . . Salvage Created 476 | . 476 Parts 23 | . 23 Haulers Intercepted . | . . Recyclers Shooed . | . . Parts Field Recycled . | . . Retrieved Matter . | . . Parts Self-Destructed . | . . Prevented . | . . Parts Restored . | . . Kills | -11 -10 ------- Run | Yrd Mat Combat Hostiles Destroyed 7 | . 7 Guns 7 | . 7 Classes Destroyed 2 | . 2 Recycler 2 | . 2 Grunt 7 | . 7 Best Kill Streak 3 | . 3 Combat Bots Only 3 | . 3 Max Kills in Single Turn 1 | . 1 Gunslinging . | . . Exploded . | . . Melee . | . . Uniques/NPCs Destroyed . | . . Combat | -11 -10 -------- Run | Yrd Mat Hostile Shots Fired 102 | . 102 Missed 24 | . 24 Hits 78 | . 78 Projectile 78 | . 78 Critical Strikes 5 | . 5 Damage Taken 961 | . 961 Core 251 | . 251 Absorbed by Shields . | . . Core Remaining (%) 100 | 100 . Volleys Fired 50 | . 50 Largest 2 | . 2 Hottest 60 | . 60 Shots Fired 71 | . 71 Gun 71 | . 71 Cannon . | . . Launcher . | . . Special . | . . Kinetic 40 | . 40 Thermal 17 | . 17 Explosive . | . . Electromagnetic 14 | . 14 Robot Hit Streak 12 | . 12 Robot Miss Streak 2 | . 2 Penetration Max . | . . Secondary Targets . | . . Shots Hit Robots 45 | . 45 Core Hits 19 | . 19 Critical Kills . | . . Critical Parts Destroyed . | . . Critical Strikes . | . . Melee Attacks . | . . Impact . | . . Slashing . | . . Piercing . | . . Sneak Attacks . | . . Combat Hostiles . | . . Follow-up Attacks . | . . Damage Inflicted 483 | . 483 Guns 483 | . 483 Cannons . | . . Explosions . | . . Melee . | . . Ramming . | . . Kinetic 172 | . 172 Thermal 165 | . 165 Explosive . | . . Electromagnetic 146 | . 146 Impact . | . . Slashing . | . . Piercing . | . . Highest Corruption 5 | . 5 Average Corruption 4 | . 4 Corruption Purged . | . . Corruption Blocked . | . . Effects 1 | . 1 Heat Flow Errors 1 | . 1 Overload Shots . | . . Overflow Damage . | . . Projectiles . | . . Explosions . | . . Melee . | . . Knockbacks . | . . Impact . | . . Kinetic . | . . Secondary . | . . Self-Inflicted Damage . | . . Shots . | . . Rammed . | . . Targets Rammed . | . . Kicked . | . . Crushed . | . . Highest Temperature 194 | . 194 Average Temperature 34 | . 34 Received Heat Transfer 636 | . 636 Siege Activations . | . . Martial Activations . | . . Shielding Activations . | . . Robots Disrupted . | . . Combat Hostiles . | . . Robots Corrupted 1 | . 1 Combat Hostiles . | . . Parts Fried 1 | . 1 Impact Corruptions . | . . Robots Melted . | . . Combat Hostiles . | . . Parts Melted 1 | . 1 Heat Transferred 375 | . 375 Parts Sabotaged . | . . Parts Stolen . | . . Parts Stripped . | . . Power Chain Reactions . | . . Alert | -11 -10 ------- Run | Yrd Mat Maximum Alert Level . | . . Low Security (%) 100 | 100 100 Level 1 . | . . Level 2 . | . . Level 3 . | . . Level 4 . | . . Level 5 . | . . High Security . | . . Max Security . | . . Peak Influence 80 | . 80 Initial . | . . Average 19 | . 27 Influence Increases 220 | . 220 Destroy 0b10 Robot/C 140 | . 140 Destroy 0b10 Robot/NC 10 | . 10 Destroy Leader 40 | . 40 Lose Combat Pursuer 30 | . 30 Influence Decreases 170 | . 170 Time Decay 90 | . 90 Lost Part 80 | . 80 Squads Dispatched 2 | . 2 Investigation . | . . Extermination . | . . Reinforcement 2 | . 2 Assault . | . . Garrison . | . . Intercept . | . . Searches Triggered . | . . Construction Impeded . | . . Haulers Reinforced . | . . Active Scanning Responses . | . . Cargo Convoy Interrupts . | . . Stealth | -11 -10 --------- Run | Yrd Mat Distress Signals . | . . Communications Jammed . | . . Distress Signals . | . . Times Spotted 13 | . 13 Peak Tracking Total 6 | . 6 Tactical Retreats 2 | . 2 Traps | -11 -10 ------- Run | Yrd Mat Traps Triggered . | . . Indirectly . | . . Trap Hack Attempts . | . . Triggered . | . . Disarmed . | . . Reprogrammed . | . . Reused . | . . Traps Extracted . | . . Installed . | . . Triggered . | . . Machines | -11 -10 ---------- Run | Yrd Mat Machines Disabled . | . . Max in Single Turn . | . . Machines Repaired . | . . Machines Dismantled . | . . Machines Sabotaged . | . . Overloaded Fab Kills . | . . Hacking | -11 -10 --------- Run | Yrd Mat Machines Accessed . | . . Terminals . | . . Fabricators . | . . Repair Stations . | . . Recycling Units . | . . Scanalyzers . | . . Garrison Access . | . . Total Hacks . | . . Successful . | . . Failed . | . . Catastrophic . | . . Database Lockouts . | . . Manual . | . . Terminals . | . . Fabricators . | . . Repair Stations . | . . Recycling Units . | . . Scanalyzers . | . . Garrison Access . | . . Terminal Hacks . | . . Fabricator Hacks . | . . Repair Station Hacks . | . . Recycling Unit Hacks . | . . Scanalyzer . | . . Garrison Access Hacks . | . . Unauthorized Hacks . | . . Terminals . | . . Fabricators . | . . Repair Stations . | . . Recycling Units . | . . Scanalyzers . | . . Garrison Access . | . . Data Cores Recovered . | . . Used . | . . Hacking Detections . | . . Full Trace Events . | . . Feedback Events . | . . Feedback Blocked . | . . Robot Schematics Acquired . | . . Robots Built . | . . Authchips . | . . Time . | . . Total Robot Build Rating . | . . Part Schematics Acquired . | . . Parts Built . | . . Authchips . | . . Time . | . . Total Part Build Rating . | . . Part Studies Acquired . | . . Parts Repaired . | . . Time . | . . Parts Recycled . | . . Recycled Matter . | . . Retrieved Matter . | . . Retrieved Components . | . . Parts Scanalyzed . | . . Part Schematics Acquired . | . . Parts Damaged . | . . Bothacking | -11 -10 ------------ Run | Yrd Mat Used RIF Installer . | . . Robots Hacked . | . . Non-combat . | . . Combat . | . . Robot Hacks Applied . | . . Relay Couplers Released . | . . Fabnet Peak Effective % . | . . Robots Rewired . | . . Allies Hacked . | . . Hacks Repelled . | . . Allies | -11 -10 -------- Run | Yrd Mat Total Allies . | . . Largest Group . | . . Highest-Rated Group . | . . Highest-Rated Ally . | . . Total Orders . | . . Ally Attacks . | . . Total Damage . | . . Kills . | . . Allies Corrupted . | . . Allies Melted . | . . Intel | -11 -10 ------- Run | Yrd Mat Active Infowar (turns) . | . . Robot Analysis Total . | . . Derelict Logs Recovered . | . . Drone Launches . | . . Drone Recoveries . | . . Exploration | -11 -10 ------------- Run | Yrd Mat Turns Passed 405 | 121 284 Spaces Moved 183 | 66 117 Core 68 | 66 2 Treads . | . . Legs 91 | . 91 Wheels 24 | . 24 Hover . | . . Flight . | . . Fastest Speed 50 | 50 100 Average Speed 126 | 146 115 Slowest Speed 150 | 150 120 Overloaded Moves . | . . Propulsion Burnouts . | . . Robots Hopped . | . . Potential Cave-ins . | . . Cave-ins Triggered . | . . Exploration Rate (%) 9 | 4 14 Regions Visited 1 Branch Regions . Pre-discovered Areas . | . . Known Exits Taken . | . . Unknown Exits Taken 1 | 1 . Scrap Searched . | . . Spaces Dug . | . . Terrain Destroyed . | . . Melee . | . . Projectile . | . . AOE . | . . Terrain Rammed . | . . Walls Destroyed . | . . Machines Disabled . | . . Actions | -11 -10 --------- Run | Yrd Mat Total 296 | 91 205 Wait 23 | 14 9 Move 182 | 65 117 Hop . | . . Pick Up 22 | 10 12 Fast Attach . | . . Attach 17 | 2 15 Detach 1 | . 1 Swap . | . . Drop 1 | . 1 Fire 50 | . 50 Melee . | . . Ram . | . . Kick . | . . Crush . | . . Escape Stasis . | . . Rewire . | . . Trap . | . . Miscellaneous . | . . Route ------- -11/Scrapyard -10/Materials History --------- Turn | Location | Event 27 | -11/Scrapyard | Discovered new exit (range 16) 122 | -11/Scrapyard | Entered Materials 282 | -10/Materials | Core integrity fell below 50% 311 | -10/Materials | Build established: Mutant 320 | -10/Materials | Core integrity fell below 20% 352 | -10/Materials | Lost 7 parts (2p2n3w) 406 | -10/Materials | Destroyed by G-34 Mercenary with Small Laser Last Messages --------------- 00370_ R-06 Scavenger system corruption misinterpreted. 00370_ R-06 Scavenger triggered Shock Trap. 00370_ The floor emits a surge of raw power. 00370_ K-01 Serf collects debris. 00371_ R-06 Scavenger system terminally corrupted. 00371_ Com. Wheel fried. 00371_ K-01 Serf collects debris. 00375_ Acquired Aluminum Leg. 00376_ K-01 Serf collects debris. 00376_ Acquired 29 matter. 00395_ Critical hit (Burn: +37). 00396_ K-01 Serf collects debris. 00399_ System corrupted: Heat flow error (+186). 00402_ Aluminum Leg destroyed. 00403_ Critical hit (Burn: +37). 00404_ G-47 Trooper heat spikes uncontrollably. 00404_ Imp. Heat Sink melted. 00404_ G-47 Trooper destroyed. Map ----- +----------------------------------------------------+ | ?????????????????????????????????????????????????? | | ?????????????????????????????????????????????????? | | ?????????????????????????????????????????????????? | | ?????????????????????????????????????????????????? | | ?????????????????????????????????????????????????? | | ?????????????????????????????????????????????????? | | ?????????????????????????????????????????????????? | | ????????????????????????????? ?????????????????? | | ???????????????????? ?????? ????????????????? | | ??????????????????? ?????? ????????????????? | | ??????????????????? ?????? ????????????????? | | ???????????????????# #????? ????????????????? | | ???????????????????# #????? #????????????????? | | ???????????????????# #????? #?#??????????????? | | ???????????????????#[* #????# # ???????????????? | | ???????????????????#%^^#????# # ???????????????? | | ???????????????????#!! #????+ +????????????????? | | ???????????????????# #????# #????????????????? | | ???????????????????# #????# #????????????????? | | ???????????????????# #????# #????????????????? | | ???????????????????# #????# #????????????????? | | ?################### ###### #????????????????? | | ?# # # #????????????????? | | ?# %+= u + #????????????????? | | ?# # # ?????????? | | ?####+############ = # @ # #########????????? | | ?# #??????# % #!! # #????????????????? | | ?# """" #??????# %g== # #????????????????? | | ?# """" #??????# ##### # #????????????????? | | ?# """" #??????# #???# ! # #????????????????? | | ?# #??????# #???# # #????????????????? | | ?# """" #??????# #???###### #????????????????? | | ?# """" #??????# #????????? #????????????????? | | ?# """" #?????? ?????????? #????????????????? | | ?# #??????# ?????????? #????????????????? | | ?##########??????? ??????????| #????????????????? | | ?????????????????? ?????????? #????????????????? | | ?????????????????? ?????????? ????????????????? | | ?????????????????? ?????????? ?????????????????? | | ?????????????????? ??????????????????????????????? | | ?????????????????????????????????????????????????? | | ?????????????????????????????????????????????????? | | ?????????????????????????????????????????????????? | | ?????????????????????????????????????????????????? | | ?????????????????????????????????????????????????? | | ?????????????????????????????????????????????????? | | ?????????????????????????????????????????????????? | | ?????????????????????????????????????????????????? | | ?????????????????????????????????????????????????? | | ?????????????????????????????????????????????????? | +----------------------------------------------------+ Best States ------------- Heat Dissipation 25 Energy Generation 10 Energy Capacity 250 Matter Stores 300 Matter Capacity 300 Sight Range 16 Terrain Scan Density 10 Evasion (%) 55 Item Schematics ----------------- None Robot Schematics ------------------ None Fabricated ------------ Nothing Repaired ---------- Nothing Studied --------- None Alien Tech Used ----------------- None Achievements -------------- A Problem For Future Me DATA ERROR: Steam Global Achievement% Organ Harvest There's More Where That Came From Challenges ------------ None Game ------ Seed MetafiberEnergySystem Manual? 0 Play Time 00:09:43 Cumulative 24.8 hours Start 2026.07.09 @ 21:16:05 End 2026.07.09 @ 21:28:13 Sessions 1 Manual Loads 0 Difficulty Rogue Special Mode None Game No. 41 Rogue 41 Adventurer 0 Explorer 0 Win Type - Total 0 Types 0/0/0/0/0/0/0/0/0/0 Lore% 10 Gallery% 19 Achievement% 11 Wizard Run 0 Options --------- Layout 1 ASCII 0 Keyboard 0 Movement Mouse Keybinds 0 Fullscreen 1 Font 32/SmallcapsGlow Map View 50x35 Zoom Use 0% Tactical HUD 1 Map Filters NONE Filters NONE Steam 1 RUN: 28e079a3-60b0-40a2-86a5-e4f858e67e05